fUST/lending_fUST_20251218
["ID","MTS","AMOUNT","RATE_DAILY","PERIOD"]
[398982024,1766046602935,-517.47,0.00053424,120]
[398982026,1766046602964,-500.0,0.00053424,120]
[398982027,1766046602994,-1513.16,0.00053424,120]
[398982029,1766046603029,-500.0,0.00053424,120]
[398982031,1766046603062,-517.47,0.00053698,120]
[398982032,1766046603097,-500.0,0.00053698,120]
[398982034,1766046603127,-1513.16,0.00053698,120]
[398982036,1766046603159,-500.0,0.00053698,120]
[398982038,1766046603189,-517.47,0.00053972,120]
[398982039,1766046603222,-500.0,0.00053972,120]
[398982041,1766046603253,-1513.16,0.00053972,120]
[398982043,1766046603284,-500.0,0.00053972,120]
[398982044,1766046603316,-517.47,0.00054246,120]
[398982046,1766046603346,-500.0,0.00054246,120]
[398982048,1766046603383,-1513.16,0.00054246,120]
[398982050,1766046603429,-500.0,0.00054246,120]
[398982052,1766046603459,-517.47,0.0005452,120]
[398982053,1766046603492,-500.0,0.0005452,120]
[398982055,1766046603527,-1513.16,0.0005452,120]
[398982057,1766046603572,-500.0,0.0005452,120]
[398982059,1766046603604,-517.47,0.00054794,120]
[398982060,1766046603637,-500.0,0.00054794,120]
[398982062,1766046603668,-1513.16,0.00054794,120]
[398982064,1766046603700,-500.0,0.00054794,120]
[398982066,1766046603733,-10002.79238635,0.000548,30]
[398982068,1766046603776,-1041.66666667,0.000548,30]
[398982069,1766046603811,-200.0,0.00054842,120]
[398982071,1766046603843,-1000.0,0.00055,120]
[398982073,1766046603872,-100302.55115539,0.00055,120]
[398982074,1766046603903,-1041.66666667,0.00055,120]
[398982076,1766046603933,-1041.66666667,0.00055,120]
[398982078,1766046603963,-1106.62,0.00055068,120]
[398982080,1766046603992,-887.68,0.00055068,120]
[398982081,1766046604023,-500.0,0.00055068,120]
[398982083,1766046604052,-500.0,0.00055068,120]
[398982085,1766046604080,-500.0,0.00055068,120]
[398982086,1766046604110,-500.0,0.00055068,120]
[398982088,1766046604139,-500.85,0.00055068,120]
[398982090,1766046604169,-500.0,0.00055068,120]
[398982091,1766046604199,-2916.62,0.00055068,120]
[398982093,1766046604230,-2205.8,0.00055068,120]
[398982095,1766046604259,-500.0,0.00055068,120]
[398982097,1766046604289,-500.0,0.00055068,120]
[398982098,1766046604320,-500.0,0.00055068,120]
[398982100,1766046604351,-608.15,0.00055068,120]
[398982102,1766046604385,-508.14,0.00055068,120]
[398982104,1766046604416,-500.0,0.00055068,120]
[398982105,1766046604450,-500.0,0.00055068,120]
[398982107,1766046604480,-641.94,0.00055068,120]
[398982109,1766046604511,-500.0,0.00055068,120]
[398982110,1766046604543,-563.47,0.00055068,120]
[398982112,1766046604574,-640.43,0.00055068,120]
[398982114,1766046604606,-303.23,0.00055068,120]
[398982116,1766046604636,-510.83,0.00055068,120]
[398982117,1766046604667,-500.0,0.00055068,120]
[398982119,1766046604697,-502.56,0.00055068,120]
[398982121,1766046604727,-500.2,0.00055068,120]
[398982122,1766046604756,-3489.36,0.00055068,120]
[398982124,1766046604787,-1201.01,0.00055068,120]
[398982126,1766046604816,-1278.61,0.00055068,120]
[398982127,1766046604851,-592.17,0.00055068,120]
[398982129,1766046604881,-500.0,0.00055068,120]
[398982131,1766046604913,-500.0,0.00055068,120]
[398982133,1766046604944,-1231.71,0.00055068,120]
[398982134,1766046604975,-1494.45,0.00055068,120]
[398982139,1766046605128,-3059.83,0.00055068,120]
[398982141,1766046605162,-500.0,0.00055068,120]
[398982142,1766046605194,-500.0,0.00055068,120]
[398982144,1766046605224,-517.47,0.00055068,120]
[398982146,1766046605256,-500.0,0.00055068,120]
[398982147,1766046605287,-1513.16,0.00055068,120]
[398982149,1766046605317,-500.0,0.00055068,120]
[398982151,1766046605347,-5000.0,0.000552,120]
[398982152,1766046605381,-5000.0,0.000552,120]
[398982154,1766046605409,-1106.62,0.00055342,120]
[398982156,1766046605438,-887.68,0.00055342,120]
[398982157,1766046605469,-500.0,0.00055342,120]
[398982159,1766046605499,-500.0,0.00055342,120]
[398982161,1766046605529,-500.0,0.00055342,120]
[398982162,1766046605560,-500.0,0.00055342,120]
[398982164,1766046605590,-500.85,0.00055342,120]
[398982166,1766046605621,-500.0,0.00055342,120]
[398982167,1766046605652,-2916.62,0.00055342,120]
[398982168,1766046605683,-2205.8,0.00055342,120]
[398982169,1766046605713,-500.0,0.00055342,120]
[398982170,1766046605742,-500.0,0.00055342,120]
[398982171,1766046605772,-500.0,0.00055342,120]
[398982172,1766046605802,-608.15,0.00055342,120]
[398982173,1766046605833,-508.14,0.00055342,120]
[398982174,1766046605863,-500.0,0.00055342,120]
[398982175,1766046605891,-500.0,0.00055342,120]
[398982176,1766046605921,-641.94,0.00055342,120]
[398982177,1766046605949,-500.0,0.00055342,120]
[398982178,1766046605979,-563.47,0.00055342,120]
[398982180,1766046606008,-640.43,0.00055342,120]
[398982181,1766046606040,-510.83,0.00055342,120]
[398982183,1766046606070,-500.0,0.00055342,120]
[398982185,1766046606099,-502.56,0.00055342,120]
[398982186,1766046606129,-500.2,0.00055342,120]
[398982188,1766046606160,-3489.36,0.00055342,120]
[398982190,1766046606191,-1201.01,0.00055342,120]
[398982191,1766046606221,-1278.61,0.00055342,120]
[398982193,1766046606253,-592.17,0.00055342,120]
[398982195,1766046606286,-500.0,0.00055342,120]
[398982196,1766046606318,-500.0,0.00055342,120]
[398982198,1766046606351,-1231.71,0.00055342,120]
[398982200,1766046606392,-1494.45,0.00055342,120]
[398982202,1766046606430,-3059.83,0.00055342,120]
[398982203,1766046606462,-500.0,0.00055342,120]
[398982205,1766046606495,-500.0,0.00055342,120]
[398982207,1766046606526,-517.47,0.00055342,120]
[398982208,1766046606556,-500.0,0.00055342,120]
[398982210,1766046606586,-1513.16,0.00055342,120]
[398982211,1766046606616,-500.0,0.00055342,120]
[398982213,1766046606646,-569.67040869,0.000555,120]
[398982215,1766046606674,-1000.0,0.000556,120]
[398982216,1766046606703,-1106.62,0.00055616,120]
[398982218,1766046606732,-887.68,0.00055616,120]
[398982220,1766046606761,-500.0,0.00055616,120]
[398982222,1766046606792,-500.0,0.00055616,120]
[398982223,1766046606820,-500.0,0.00055616,120]
[398982225,1766046606848,-424.94,0.00055616,120]
[398982226,1766046606876,-500.85,0.00055616,120]
[398982228,1766046606905,-500.0,0.00055616,120]
[398982230,1766046606934,-2916.62,0.00055616,120]
[398982231,1766046606964,-2205.8,0.00055616,120]
[398982233,1766046606996,-312.45,0.00055616,120]
[398982235,1766046607026,-500.0,0.00055616,120]
[398982237,1766046607057,-500.0,0.00055616,120]
[398982238,1766046607086,-608.15,0.00055616,120]
[398982240,1766046607116,-508.14,0.00055616,120]
[398982241,1766046607146,-500.0,0.00055616,120]
[398982243,1766046607175,-500.0,0.00055616,120]
[398982245,1766046607203,-641.94,0.00055616,120]
[398982246,1766046607233,-465.8,0.00055616,120]
[398982248,1766046607263,-563.47,0.00055616,120]
[398982250,1766046607294,-640.43,0.00055616,120]
[398982251,1766046607324,-510.83,0.00055616,120]
[398982253,1766046607354,-185.23,0.00055616,120]
[398982255,1766046607386,-502.56,0.00055616,120]
[398982256,1766046607419,-500.2,0.00055616,120]
[398982258,1766046607451,-3489.36,0.00055616,120]
[398982260,1766046607482,-1201.01,0.00055616,120]
[398982263,1766046607512,-1278.61,0.00055616,120]
[398982265,1766046607639,-592.17,0.00055616,120]
[398982267,1766046607670,-500.0,0.00055616,120]
[398982269,1766046607703,-500.0,0.00055616,120]
[398982270,1766046607735,-1231.71,0.00055616,120]
[398982272,1766046607765,-1494.45,0.00055616,120]
[398982274,1766046607798,-3059.83,0.00055616,120]
[398982276,1766046607830,-500.0,0.00055616,120]
[398982277,1766046607860,-500.0,0.00055616,120]
[398982279,1766046607890,-517.47,0.00055616,120]
[398982281,1766046607920,-500.0,0.00055616,120]
[398982282,1766046607950,-1513.16,0.00055616,120]
[398982284,1766046607981,-500.0,0.00055616,120]
[398982286,1766046608012,-1106.62,0.0005589,120]
[398982287,1766046608044,-887.68,0.0005589,120]
[398982289,1766046608075,-500.0,0.0005589,120]
[398982291,1766046608106,-640.78097503,0.0005589,120]
[398982292,1766046608138,-500.0,0.0005589,120]
[398982294,1766046608169,-500.85,0.0005589,120]
[398982296,1766046608199,-500.0,0.0005589,120]
[398982297,1766046608232,-2916.62,0.0005589,120]
[398982299,1766046608265,-2205.8,0.0005589,120]
[398982301,1766046608298,-259.56,0.0005589,120]
[398982302,1766046608328,-500.0,0.0005589,120]
[398982304,1766046608359,-608.15,0.0005589,120]
[398982306,1766046608388,-508.14,0.0005589,120]
[398982307,1766046608418,-500.0,0.0005589,120]
[398982309,1766046608448,-500.0,0.0005589,120]
[398982311,1766046608479,-641.94,0.0005589,120]
[398982312,1766046608510,-563.47,0.0005589,120]
[398982314,1766046608542,-640.43,0.0005589,120]
[398982316,1766046608575,-510.83,0.0005589,120]
[398982317,1766046608607,-502.56,0.0005589,120]
[398982319,1766046608638,-500.2,0.0005589,120]
[398982321,1766046608670,-3489.36,0.0005589,120]
[398982322,1766046608703,-1201.01,0.0005589,120]
[398982324,1766046608734,-1278.61,0.0005589,120]
[398982326,1766046608766,-592.17,0.0005589,120]
[398982328,1766046608797,-500.0,0.0005589,120]
[398982329,1766046608831,-500.0,0.0005589,120]
[398982331,1766046608865,-1231.71,0.0005589,120]
[398982333,1766046608896,-1494.45,0.0005589,120]
[398982334,1766046608929,-3059.83,0.0005589,120]
[398982336,1766046608961,-500.0,0.0005589,120]
[398982338,1766046608993,-500.0,0.0005589,120]
[398982340,1766046609024,-517.47,0.0005589,120]
[398982341,1766046609059,-500.0,0.0005589,120]
[398982343,1766046609092,-1513.16,0.0005589,120]
[398982345,1766046609126,-500.0,0.0005589,120]
[398982347,1766046609160,-1000.0,0.00056,120]
[398982348,1766046609192,-200.0,0.00056,120]
[398982350,1766046609223,-180.0,0.00056,120]
[398982352,1766046609254,-1106.62,0.00056164,120]
[398982354,1766046609284,-887.68,0.00056164,120]
[398982355,1766046609315,-500.0,0.00056164,120]
[398982357,1766046609347,-500.0,0.00056164,120]
[398982359,1766046609379,-500.85,0.00056164,120]
[398982360,1766046609408,-500.0,0.00056164,120]
[398982362,1766046609438,-2916.62,0.00056164,120]
[398982364,1766046609468,-2205.8,0.00056164,120]
[398982365,1766046609498,-500.0,0.00056164,120]
[398982367,1766046609528,-608.15,0.00056164,120]
[398982368,1766046609558,-508.14,0.00056164,120]
[398982370,1766046609588,-500.0,0.00056164,120]
[398982372,1766046609618,-500.0,0.00056164,120]
[398982374,1766046609647,-641.94,0.00056164,120]
[398982375,1766046609676,-563.47,0.00056164,120]
[398982377,1766046609707,-640.43,0.00056164,120]
[398982379,1766046609737,-510.83,0.00056164,120]
[398982380,1766046609766,-502.56,0.00056164,120]
[398982382,1766046609795,-500.2,0.00056164,120]
[398982384,1766046609825,-3489.36,0.00056164,120]
[398982385,1766046609854,-1201.01,0.00056164,120]
[398982387,1766046609883,-1278.61,0.00056164,120]
[398982389,1766046609912,-592.17,0.00056164,120]
[398982390,1766046609941,-431.92000001,0.00056164,120]
[398982392,1766046609970,-500.0,0.00056164,120]
[398982396,1766046610093,-1231.71,0.00056164,120]
[398982397,1766046610123,-1494.45,0.00056164,120]
[398982399,1766046610156,-3059.83,0.00056164,120]
[398982401,1766046610187,-500.0,0.00056164,120]
[398982403,1766046610218,-500.0,0.00056164,120]
[398982404,1766046610251,-517.47,0.00056164,120]
[398982406,1766046610280,-500.0,0.00056164,120]
[398982407,1766046610307,-1513.16,0.00056164,120]
[398982408,1766046610336,-500.0,0.00056164,120]
[398982409,1766046610366,-5000.0,0.000562,120]
[398982410,1766046610392,-1106.62,0.00056438,120]
[398982411,1766046610422,-887.68,0.00056438,120]
[398982412,1766046610451,-500.0,0.00056438,120]
[398982413,1766046610480,-271.45,0.00056438,120]
[398982414,1766046610508,-500.85,0.00056438,120]
[398982415,1766046610536,-500.0,0.00056438,120]
[398982416,1766046610564,-2916.62,0.00056438,120]
[398982417,1766046610591,-2205.8,0.00056438,120]
[398982418,1766046610619,-500.0,0.00056438,120]
[398982419,1766046610647,-608.15,0.00056438,120]
[398982420,1766046610675,-508.14,0.00056438,120]
[398982422,1766046610705,-500.0,0.00056438,120]
[398982423,1766046610735,-500.0,0.00056438,120]
[398982425,1766046610763,-641.94,0.00056438,120]
[398982427,1766046610792,-563.47,0.00056438,120]
[398982428,1766046610821,-640.43,0.00056438,120]
[398982430,1766046610850,-510.83,0.00056438,120]
[398982432,1766046610878,-502.56,0.00056438,120]
[398982433,1766046610907,-500.2,0.00056438,120]
[398982435,1766046610936,-3489.36,0.00056438,120]
[398982437,1766046610965,-1201.01,0.00056438,120]
[398982438,1766046610993,-1278.61,0.00056438,120]
[398982440,1766046611023,-592.17,0.00056438,120]
[398982442,1766046611053,-500.0,0.00056438,120]
[398982444,1766046611083,-1231.71,0.00056438,120]
[398982445,1766046611113,-1494.45,0.00056438,120]
[398982447,1766046611142,-3059.83,0.00056438,120]
[398982449,1766046611171,-500.0,0.00056438,120]
[398982450,1766046611201,-373.68604755,0.00056438,120]
[398982452,1766046611233,-517.47,0.00056438,120]
[398982454,1766046611261,-500.0,0.00056438,120]
[398982455,1766046611290,-1513.16,0.00056438,120]
[398982457,1766046611319,-500.0,0.00056438,120]
[398982459,1766046611347,-1041.66666667,0.000567,120]
[398982460,1766046611377,-1106.62,0.00056712,120]
[398982462,1766046611405,-887.68,0.00056712,120]
[398982464,1766046611433,-500.0,0.00056712,120]
[398982465,1766046611462,-500.85,0.00056712,120]
[398982467,1766046611490,-592.659814,0.00056712,120]
[398982469,1766046611519,-2916.62,0.00056712,120]
[398982470,1766046611550,-2205.8,0.00056712,120]
[398982472,1766046611580,-500.0,0.00056712,120]
[398982474,1766046611610,-608.15,0.00056712,120]
[398982475,1766046611639,-508.14,0.00056712,120]
[398982477,1766046611667,-213.86,0.00056712,120]
[398982478,1766046611695,-330.3945811,0.00056712,120]
[398982480,1766046611723,-641.94,0.00056712,120]
[398982482,1766046611752,-563.47,0.00056712,120]
[398982483,1766046611781,-640.43,0.00056712,120]
[398982485,1766046611810,-510.83,0.00056712,120]
[398982487,1766046611838,-502.56,0.00056712,120]
[398982488,1766046611866,-500.2,0.00056712,120]
[398982490,1766046611895,-3489.36,0.00056712,120]
[398982492,1766046611923,-1201.01,0.00056712,120]
[398982493,1766046611950,-1278.61,0.00056712,120]
[398982495,1766046611981,-592.17,0.00056712,120]
[398982497,1766046612011,-500.0,0.00056712,120]
[398982499,1766046612043,-1231.71,0.00056712,120]
[398982500,1766046612073,-1494.45,0.00056712,120]
[398982502,1766046612104,-3059.83,0.00056712,120]
[398982504,1766046612135,-500.0,0.00056712,120]
[398982505,1766046612164,-517.47,0.00056712,120]
[398982507,1766046612195,-500.0,0.00056712,120]
[398982511,1766046612311,-1513.16,0.00056712,120]
[398982512,1766046612345,-500.0,0.00056712,120]
[398982514,1766046612375,-152.0,0.000568,120]
[398982516,1766046612407,-1000.0,0.000568,120]
[398982518,1766046612437,-217.919,0.00056874,110]
[398982519,1766046612467,-1106.62,0.00056986,120]
[398982521,1766046612496,-887.68,0.00056986,120]
[398982523,1766046612527,-466.63862134,0.00056986,120]
[398982524,1766046612556,-500.85,0.00056986,120]
[398982526,1766046612585,-2916.62,0.00056986,120]
[398982528,1766046612615,-2205.8,0.00056986,120]
[398982529,1766046612645,-500.0,0.00056986,120]
[398982531,1766046612673,-608.15,0.00056986,120]
[398982533,1766046612703,-508.14,0.00056986,120]
[398982534,1766046612732,-641.94,0.00056986,120]
[398982536,1766046612761,-563.47,0.00056986,120]
[398982538,1766046612790,-640.43,0.00056986,120]
[398982540,1766046612819,-510.83,0.00056986,120]
[398982541,1766046612847,-502.56,0.00056986,120]
[398982543,1766046612875,-500.2,0.00056986,120]
[398982545,1766046612903,-3489.36,0.00056986,120]
[398982546,1766046612932,-1201.01,0.00056986,120]
[398982548,1766046612960,-1278.61,0.00056986,120]
[398982550,1766046612991,-592.17,0.00056986,120]
[398982551,1766046613025,-500.0,0.00056986,120]
[398982553,1766046613060,-1231.71,0.00056986,120]
[398982555,1766046613091,-1494.45,0.00056986,120]
[398982557,1766046613125,-3059.83,0.00056986,120]
[398982559,1766046613159,-500.0,0.00056986,120]
[398982560,1766046613191,-517.47,0.00056986,120]
[398982562,1766046613223,-500.0,0.00056986,120]
[398982564,1766046613255,-1513.16,0.00056986,120]
[398982566,1766046613284,-500.0,0.00056986,120]
[398982567,1766046613312,-1000.0,0.00057,120]
[398982569,1766046613342,-5000.0,0.000572,120]
[398982571,1766046613375,-1106.62,0.0005726,120]
[398982572,1766046613407,-887.68,0.0005726,120]
[398982574,1766046613440,-500.85,0.0005726,120]
[398982576,1766046613472,-2916.62,0.0005726,120]
[398982578,1766046613505,-2205.8,0.0005726,120]
[398982579,1766046613538,-500.0,0.0005726,120]
[398982581,1766046613568,-608.15,0.0005726,120]
[398982583,1766046613600,-508.14,0.0005726,120]
[398982585,1766046613630,-641.94,0.0005726,120]
[398982586,1766046613660,-563.47,0.0005726,120]
[398982588,1766046613691,-640.43,0.0005726,120]
[398982590,1766046613720,-510.83,0.0005726,120]
[398982591,1766046613750,-502.56,0.0005726,120]
[398982593,1766046613781,-500.2,0.0005726,120]
[398982594,1766046613810,-3489.36,0.0005726,120]
[398982596,1766046613838,-1201.01,0.0005726,120]
[398982598,1766046613866,-1278.61,0.0005726,120]
[398982599,1766046613895,-592.17,0.0005726,120]
[398982601,1766046613924,-500.0,0.0005726,120]
[398982602,1766046613955,-1231.71,0.0005726,120]
[398982604,1766046613984,-1494.45,0.0005726,120]
[398982606,1766046614013,-3059.83,0.0005726,120]
[398982607,1766046614042,-500.0,0.0005726,120]
[398982609,1766046614070,-517.47,0.0005726,120]
[398982611,1766046614098,-500.0,0.0005726,120]
[398982612,1766046614126,-1513.16,0.0005726,120]
[398982614,1766046614155,-1106.62,0.00057534,120]
[398982616,1766046614184,-887.68,0.00057534,120]
[398982617,1766046614213,-500.85,0.00057534,120]
[398982619,1766046614242,-2916.62,0.00057534,120]
[398982620,1766046614272,-2205.8,0.00057534,120]
[398982622,1766046614302,-500.0,0.00057534,120]
[398982624,1766046614332,-608.15,0.00057534,120]
[398982625,1766046614363,-508.14,0.00057534,120]
[398982627,1766046614391,-641.94,0.00057534,120]
[398982629,1766046614419,-563.47,0.00057534,120]
[398982630,1766046614448,-640.43,0.00057534,120]
[398982634,1766046614569,-510.83,0.00057534,120]
[398982636,1766046614599,-502.56,0.00057534,120]
[398982638,1766046614629,-500.2,0.00057534,120]
[398982639,1766046614657,-3489.36,0.00057534,120]
[398982641,1766046614686,-1201.01,0.00057534,120]
[398982643,1766046614715,-1278.61,0.00057534,120]
[398982644,1766046614747,-592.17,0.00057534,120]
[398982646,1766046614777,-500.0,0.00057534,120]
[398982647,1766046614806,-1231.71,0.00057534,120]
[398982648,1766046614834,-1494.45,0.00057534,120]
[398982649,1766046614863,-3059.83,0.00057534,120]
[398982650,1766046614891,-264.06484578,0.00057534,120]
[398982651,1766046614921,-517.47,0.00057534,120]
[398982652,1766046614950,-360.60456311,0.00057534,120]
[398982653,1766046614979,-1513.16,0.00057534,120]
[398982654,1766046615008,-1106.62,0.00057808,120]
[398982655,1766046615037,-887.68,0.00057808,120]
[398982656,1766046615066,-500.85,0.00057808,120]
[398982658,1766046615095,-2916.62,0.00057808,120]
[398982659,1766046615125,-2205.8,0.00057808,120]
[398982661,1766046615158,-511.31,0.00057808,120]
[398982662,1766046615192,-608.15,0.00057808,120]
[398982664,1766046615224,-508.14,0.00057808,120]
[398982666,1766046615257,-641.94,0.00057808,120]
[398982667,1766046615288,-563.47,0.00057808,120]
[398982669,1766046615319,-640.43,0.00057808,120]
[398982671,1766046615349,-510.83,0.00057808,120]
[398982673,1766046615382,-502.56,0.00057808,120]
[398982674,1766046615412,-3489.36,0.00057808,120]
[398982676,1766046615442,-500.2,0.00057808,120]
[398982678,1766046615472,-1201.01,0.00057808,120]
[398982679,1766046615504,-1278.61,0.00057808,120]
[398982681,1766046615536,-592.17,0.00057808,120]
[398982683,1766046615569,-500.0,0.00057808,120]
[398982685,1766046615601,-1231.71,0.00057808,120]
[398982686,1766046615632,-1494.45,0.00057808,120]
[398982688,1766046615666,-3059.83,0.00057808,120]
[398982690,1766046615697,-517.47,0.00057808,120]
[398982691,1766046615726,-1513.16,0.00057808,120]
[398982693,1766046615755,-558.95249055,0.00057994,120]
[398982695,1766046615783,-1000.0,0.00058,120]
[398982696,1766046615812,-1249.0,0.00058,120]
[398982698,1766046615841,-200.0,0.00058,120]
[398982700,1766046615869,-232.6,0.00058,120]
[398982701,1766046615899,-1106.62,0.00058082,120]
[398982703,1766046615928,-887.68,0.00058082,120]
[398982705,1766046615957,-500.85,0.00058082,120]
[398982707,1766046615985,-2916.62,0.00058082,120]
[398982708,1766046616017,-2205.8,0.00058082,120]
[398982710,1766046616047,-608.15,0.00058082,120]
[398982712,1766046616076,-508.14,0.00058082,120]
[398982713,1766046616106,-641.94,0.00058082,120]
[398982715,1766046616135,-563.47,0.00058082,120]
[398982717,1766046616163,-640.43,0.00058082,120]
[398982718,1766046616194,-510.83,0.00058082,120]
[398982720,1766046616224,-502.56,0.00058082,120]
[398982722,1766046616254,-3489.36,0.00058082,120]
[398982723,1766046616285,-500.2,0.00058082,120]
[398982725,1766046616314,-1201.01,0.00058082,120]
[398982727,1766046616343,-1278.61,0.00058082,120]
[398982728,1766046616377,-592.17,0.00058082,120]
[398982730,1766046616408,-267.24,0.00058082,120]
[398982732,1766046616440,-1231.71,0.00058082,120]
[398982733,1766046616470,-1494.45,0.00058082,120]
[398982735,1766046616502,-3059.83,0.00058082,120]
[398982737,1766046616534,-517.47,0.00058082,120]
[398982739,1766046616563,-1513.16,0.00058082,120]
[398982740,1766046616592,-500.0,0.00058356,120]
[398982742,1766046616621,-1106.70182741,0.00058356,120]
[398982746,1766046616742,-887.7831647,0.00058356,120]
[398982747,1766046616773,-501.04,0.00058356,120]
[398982749,1766046616803,-2916.85237044,0.00058356,120]
[398982751,1766046616833,-2206.02,0.00058356,120]
[398982753,1766046616862,-608.18,0.00058356,120]
[398982754,1766046616890,-508.33,0.00058356,120]
[398982756,1766046616918,-642.02,0.00058356,120]
[398982758,1766046616946,-563.62680946,0.00058356,120]
[398982759,1766046616975,-640.62,0.00058356,120]
[398982761,1766046617005,-510.92,0.00058356,120]
[398982763,1766046617033,-502.67,0.00058356,120]
[398982764,1766046617064,-3489.5,0.00058356,120]
[398982766,1766046617093,-500.27,0.00058356,120]
[398982768,1766046617121,-1201.1907273,0.00058356,120]
[398982770,1766046617149,-1278.72567055,0.00058356,120]
[398982771,1766046617178,-592.19,0.00058356,120]
[398982773,1766046617209,-1231.78123063,0.00058356,120]
[398982775,1766046617241,-1494.53,0.00058356,120]
[398982777,1766046617273,-3060.03000001,0.00058356,120]
[398982778,1766046617305,-517.62596306,0.00058356,120]
[398982780,1766046617334,-1513.16993124,0.00058356,120]
[398982782,1766046617368,-152.0,0.000585,120]
[398982784,1766046617399,-420976.60074962,0.0005888,30]
[398983182,1766046635836,-150.0,0.00022453,2]
[398983183,1766046635846,-177.0,0.00024453,2]
[398983184,1766046635855,-56.16377916,0.00026453,2]
[398983186,1766046635904,-147.83622084,0.00026453,2]
[398983187,1766046635914,-1041.66666667,0.00028329,2]
[398983189,1766046635924,-231.0,0.00028453,2]
[398983190,1766046635933,-300.0,0.00029999,2]
[398983191,1766046635943,-300.0,0.00029999,2]
[398983192,1766046635952,-1200.0,0.00029999,2]
[398983193,1766046635962,-11473.82856994,0.0003,2]
[398983195,1766046635972,-504.86017874,0.0003,2]
[398983196,1766046635983,-1054.42585719,0.0003,2]
[398983243,1766046638072,-460.51202586,0.0003,2]
[398983244,1766046638083,-856.45762511,0.00037677,2]
[398983245,1766046638093,-836.6783424,0.00039156,3]
[398983246,1766046638104,-822.44359829,0.00039272,2]
[398983248,1766046638113,-20000.0,0.00039372,4]
[398983249,1766046638123,-2172.38799652,0.00039372,30]
[398983250,1766046638132,-788.0,0.0004,2]
[398983251,1766046638141,-1274.35,0.000413,2]
[398983252,1766046638151,-161.395145,0.00044521,2]
[398983254,1766046638161,-822.44359829,0.00047147,28]
[398983255,1766046638170,-500.0,0.00052054,7]
[398983256,1766046638180,-500.0,0.00052054,2]
[398983257,1766046638189,-500.0,0.00052054,2]
[398983258,1766046638198,-918.26,0.00052054,120]
[398983259,1766046638207,-510.92,0.00052054,120]
[398983260,1766046638216,-160.0,0.00052198,3]
[398983261,1766046638226,-500.0,0.00052328,7]
[398983262,1766046638236,-500.0,0.00052328,2]
[398983263,1766046638246,-500.0,0.00052328,2]
[398983264,1766046638256,-918.26,0.00052328,120]
[398983265,1766046638265,-500.0,0.00052602,7]
[398983266,1766046638275,-500.0,0.00052602,2]
[398983267,1766046638285,-500.0,0.00052602,2]
[398983268,1766046638296,-918.26,0.00052602,120]
[398983269,1766046638305,-500.0,0.00052876,7]
[398983270,1766046638314,-500.0,0.00052876,2]
[398983271,1766046638324,-500.0,0.00052876,2]
[398983272,1766046638334,-918.26,0.00052876,120]
[398983273,1766046638343,-1274.35,0.00053,2]
[398983274,1766046638353,-500.0,0.0005315,7]
[398983275,1766046638363,-500.0,0.0005315,2]